Workbook

Sheet Master
C1: EMPLOYEE DETAIL | T1: GPF | U1: YES
T2: NPS | U2: NO
A3: OFFICE NAME :- | C3: Government Senior Secondry School Inderwara , Pali
A4: Old 7th Pay DA % :- | C4: 12 | E4: Old 7th Pay HRA % :- | H4: 8
A5: New 7th Pay DA % :- | C5: 17 | E5: New 7th Pay HRA % :- | H5: 8
A7: S.R. NO. | B7: EMPLOYEE NAME | C7: POST | D7: How Many Months make Arrear | E7: 7th Pay Basic | F7: GPF / NPS | G7: INCOME TAX | H7: Surrender Arrear YES / NO
A8: 1 | B8: MISHRI LAL | C8: PRINCIPAL | D8: 8 | E8: 71400 | F8: GPF | N8: ije~ iwT; xq:nso oklqnso th egkjkt dks ueu
A9: 2 | B9: KALYAN SINGH | C9: LECTURER | D9: 8 | E9: 47000 | F9: NPS
A10: 3 | B10: BHAGWAN SINGH | C10: LECTURER | D10: 8 | E10: 71300 | F10: NPS
A11: 4 | B11: MANGILAL RANGI | C11: Sr. Teacher | D11: 8 | E11: 71300 | F11: GPF
A12: 5 | B12: HEERA LAL JAT | C12: Sr. Teacher | D12: 8 | E12: 49300 | F12: GPF | H12: YES
A13: 6 | B13: MAHENDRA PATEL | C13: Sr. Teacher | D13: 8 | E13: 41300 | F13: NPS
A14: 7 | B14: BHALA RAM MOBARSA | C14: TEACHER L-1 | D14: 8 | E14: 67000 | F14: GPF
A15: 8 | B15: ARJUN SINGH | C15: TEACHER L-1 | D15: 8 | E15: 46500 | F15: GPF
A16: 9 | B16: SURESH KUMAR ADARA | C16: TEACHER L-2 | D16: 8 | E16: 50800 | F16: NPS
A17: 10 | B17: LALIT KUMAR | C17: TEACHER L-1 | D17: 8 | E17: 50800 | F17: GPF
A18: 11 | B18: MANDIP SINGH BHULLAR | C18: P.T.I. IIIrd | D18: 8 | E18: 35800 | F18: NPS
A19: 12 | B19: AJAY KUMAR | C19: PEON | D19: 8 | E19: 30500 | F19: GPF
A20: 13 | B20: PEERARAM | C20: Sr. Teacher | D20: 8 | E20: 67200 | F20: GPF
A21: 14 | B21: SOHAN LAL | C21: TEACHER L-2 | D21: 8 | E21: 38000 | F21: NPS
A22: 15 | B22: SITARAM | C22: TEACHER L-1 | D22: 5 | E22: 36900 | F22: NPS
A23: 16
A24: 17
A25: 18
A26: 19
A27: 20
A28: 21
A29: 22
A30: 23
A31: 24
A32: 25
A33: 26
A34: 27
A35: 28
A36: 29
A37: 30
A38: 31
A39: 32
A40: 33
A41: 34
A42: 35
A43: 36
A44: 37
A45: 38
A46: 39
A47: 40
A48: 41
A49: 42
A50: 43
A51: 44
A52: 45
A53: 46
A54: 47
A55: 48
A56: 49
A57: 50
A58: 51
A59: 52
A60: 53
A61: 54
A62: 55
A63: 56
A64: 57
A65: 58
A66: 59
A67: 60
A68: 61
A69: 62
A70: 63
A71: 64
A72: 65
A73: 66
A74: 67
A75: 68
A76: 69
A77: 70
A78: 71
A79: 72
A80: 73
A81: 74
A82: 75
A83: 76
A84: 77
A85: 78
A86: 79
A87: 80
A88: 81
A89: 82
A90: 83
A91: 84
A92: 85
A93: 86
A94: 87
A95: 88
A96: 89
A97: 90
A98: 91
A99: 92
A100: 93
A101: 94
A102: 95
A103: 96
A104: 97
A105: 98
A106: 99
A107: 100
A108: 101

Sheet Arrear
A1: DA (17%) Drawn Statement | X1: =IF(ISNA(VLOOKUP($F$4,Master!A$8:N$127,4,FALSE)),"",VLOOKUP($F$4,Master!A$8:AH$127,4,FALSE)) -> 8 | Y1: =IF(ISNA(VLOOKUP($F$4,Master!A$8:N$127,6,FALSE)),"",VLOOKUP($F$4,Master!A$8:AH$127,6,FALSE)) -> GPF | Z1: NPS | AA1: GPF | AB1: =IF(ISNA(VLOOKUP($F$4,Master!A$8:N$127,7,FALSE)),"",VLOOKUP($F$4,Master!A$8:AH$127,7,FALSE)) -> 0
A2: =IF(AND(Master!C3=""),"",CONCATENATE("Office Of ",Master!C3)) -> Office Of Government Senior Secondry School Inderwara , Pali | Y2: =IF(ISNA(VLOOKUP($F$4,Master!A$8:N$127,8,FALSE)),"",VLOOKUP($F$4,Master!A$8:AH$127,8,FALSE)) -> 0 | Z2: YES
E3: Name of Employee :- | J3: =IF(ISNA(VLOOKUP($F$4,Master!A$8:N$127,2,FALSE)),"",VLOOKUP($F$4,Master!A$8:AH$127,2,FALSE)) -> MISHRI LAL | O3: POST:- | Q3: =IF(ISNA(VLOOKUP($F$4,Master!A$8:N$127,3,FALSE)),"",VLOOKUP($F$4,Master!A$8:AH$127,3,FALSE)) -> PRINCIPAL
E4: Sr. No. - | F4: 1
A5: Serial No. | B5: Month & Year | C5: Pay Due | G5: Pay Drawn | K5: Pay Difference | O5: Deducation | R5: Total of Dedu ction Col. 15 to 17 | S5: To be paid deducting Col. 14 form 18 | T5: Treasury Bill@ Voucher No.& Date
C6: Basic | D6: Dearness Allowance | E6: H.R.A. | F6: Total Col. 3 to 5 | G6: Basic | H6: Dearness Allowance | I6: H.R.A. | J6: Total Col. 7 to 9 | K6: Basic Pay | L6: Dearness Allowance | M6: H.R.A. | N6: Total Col. 11 to 13 | O6: NPS/GPF | Q6: Income Tax / TDS
O7: NPS | P7: GPF
A8: 1 | B8: 2 | C8: 3 | D8: 4 | E8: 5 | F8: 6 | G8: 7 | H8: 8 | I8: 9 | J8: 10 | K8: 11 | L8: 12 | M8: 13 | N8: 14 | O8: 15 | P8: 16 | Q8: 17 | R8: 18 | S8: 19 | T8: 20
A9: 1 | B9: 2019-07-01 | C9: =IF(ISNA(VLOOKUP($F$4,Master!A$8:N$127,5,FALSE)),"",VLOOKUP($F$4,Master!A$8:AH$127,5,FALSE)) -> 71400 | D9: =IF(AND(C9=""),"",IF(AND($F$4=""),"",ROUND(C9*Master!C$5%,0))) -> 12138 | E9: =IF(AND(C9=""),"",IF(AND($F$4=""),"",ROUND(C9*Master!H$5%,0))) -> 5712 | F9: =IF(AND(C9=""),"",SUM(C9:E9)) -> 89250 | G9: =IF(ISNA(VLOOKUP($F$4,Master!A$8:N$127,5,FALSE)),"",VLOOKUP($F$4,Master!A$8:AH$127,5,FALSE)) -> 71400 | H9: =IF(AND(G9=""),"",IF(AND($F$4=""),"",ROUND(G9*Master!C$4%,0))) -> 8568 | I9: =IF(AND(G9=""),"",IF(AND($F$4=""),"",ROUND(G9*Master!H$4%,0))) -> 5712 | J9: =IF(AND(C9=""),"",SUM(G9:I9)) -> 85680 | K9: =IF(AND(C9=""),"",IF(AND(G9=""),"",C9-G9)) -> 0 | L9: 3570 | M9: 0 | N9: 3570 | O9: =IF(AND(C9=""),"",IF(AND(Y$1=Z$1),ROUND((N9)*10%,0),"0")) -> 0 | P9: =IF(AND(C9=""),"",IF(AND(Y$1=AA$1),N9-Q9,"0")) -> 3570 | Q9: =IF(AND($F$4=""),"",IF(AND(N9=""),"",ROUND(N9*AB$1%,0))) -> 0 | R9: =IF(AND(F$4=""),"",IF(AND(C9=""),"",IF(AND(O9=""),"",IF(AND(P9=""),"",O9+P9+Q9)))) -> 3570 | S9: =IF(AND(N9=""),"",IF(AND(R9=""),"",N9-R9)) -> 0 | Y9: 2019-07-01
A10: 2 | B10: =IF(AND($F$4=""),"",IF(AND(Arrear!X$1<2),"",Y10)) -> 2019-08-01 | C10: =IF(AND($F$4=""),"",IF(AND(Arrear!X$1<2),"",Arrear!C9)) -> 71400 | D10: =IF(AND(C10=""),"",IF(AND($F$4=""),"",ROUND(C10*Master!C$5%,0))) -> 12138 | E10: =IF(AND(C10=""),"",IF(AND($F$4=""),"",ROUND(C10*Master!H$5%,0))) -> 5712 | F10: 89250 | G10: =IF(AND($F$4=""),"",IF(AND(Arrear!X$1<2),"",Arrear!C10)) -> 71400 | H10: =IF(AND(G10=""),"",IF(AND($F$4=""),"",ROUND(G10*Master!C$4%,0))) -> 8568 | I10: =IF(AND(G10=""),"",IF(AND($F$4=""),"",ROUND(G10*Master!H$4%,0))) -> 5712 | J10: 85680 | K10: 0 | L10: 3570 | M10: 0 | N10: 3570 | O10: =IF(AND(C10=""),"",IF(AND(Y$1=Z$1),ROUND((N10)*10%,0),"0")) -> 0 | P10: =IF(AND(C10=""),"",IF(AND(Y$1=AA$1),N10-Q10,"0")) -> 3570 | Q10: =IF(AND($F$4=""),"",IF(AND(N10=""),"",ROUND(N10*AB$1%,0))) -> 0 | R10: =IF(AND(F$4=""),"",IF(AND(C10=""),"",IF(AND(O10=""),"",IF(AND(P10=""),"",O10+P10+Q10)))) -> 3570 | S10: =IF(AND(N10=""),"",IF(AND(R10=""),"",N10-R10)) -> 0 | Y10: 2019-08-01
A11: 3 | B11: =IF(AND($F$4=""),"",IF(AND(Arrear!X$1<3),"",Y11)) -> 2019-09-01 | C11: =IF(AND($F$4=""),"",IF(AND(Arrear!X$1<3),"",Arrear!C10)) -> 71400 | D11: =IF(AND(C11=""),"",IF(AND($F$4=""),"",ROUND(C11*Master!C$5%,0))) -> 12138 | E11: =IF(AND(C11=""),"",IF(AND($F$4=""),"",ROUND(C11*Master!H$5%,0))) -> 5712 | F11: 89250 | G11: =IF(AND($F$4=""),"",IF(AND(Arrear!X$1<3),"",Arrear!C11)) -> 71400 | H11: =IF(AND(G11=""),"",IF(AND($F$4=""),"",ROUND(G11*Master!C$4%,0))) -> 8568 | I11: =IF(AND(G11=""),"",IF(AND($F$4=""),"",ROUND(G11*Master!H$4%,0))) -> 5712 | J11: 85680 | K11: 0 | L11: 3570 | M11: 0 | N11: 3570 | O11: 0 | P11: 3570 | Q11: 0 | R11: 3570 | S11: 0 | Y11: 2019-09-01
A12: 4 | B12: =IF(AND($F$4=""),"",IF(AND(Arrear!X$1<4),"",Y12)) -> 2019-10-01 | C12: =IF(AND($F$4=""),"",IF(AND(Arrear!X$1<4),"",Arrear!C11)) -> 71400 | D12: =IF(AND(C12=""),"",IF(AND($F$4=""),"",ROUND(C12*Master!C$5%,0))) -> 12138 | E12: =IF(AND(C12=""),"",IF(AND($F$4=""),"",ROUND(C12*Master!H$5%,0))) -> 5712 | F12: 89250 | G12: =IF(AND($F$4=""),"",IF(AND(Arrear!X$1<4),"",Arrear!C12)) -> 71400 | H12: =IF(AND(G12=""),"",IF(AND($F$4=""),"",ROUND(G12*Master!C$4%,0))) -> 8568 | I12: =IF(AND(G12=""),"",IF(AND($F$4=""),"",ROUND(G12*Master!H$4%,0))) -> 5712 | J12: 85680 | K12: 0 | L12: 3570 | M12: 0 | N12: 3570 | O12: 0 | P12: 3570 | Q12: 0 | R12: 3570 | S12: 0 | Y12: 2019-10-01
A13: 5 | B13: =IF(AND($F$4=""),"",IF(AND(Arrear!X$1<5),"",Y13)) -> 2019-11-01 | C13: =IF(AND($F$4=""),"",IF(AND(Arrear!X$1<5),"",Arrear!C12)) -> 71400 | D13: =IF(AND(C13=""),"",IF(AND($F$4=""),"",ROUND(C13*Master!C$5%,0))) -> 12138 | E13: =IF(AND(C13=""),"",IF(AND($F$4=""),"",ROUND(C13*Master!H$5%,0))) -> 5712 | F13: 89250 | G13: =IF(AND($F$4=""),"",IF(AND(Arrear!X$1<5),"",Arrear!C13)) -> 71400 | H13: =IF(AND(G13=""),"",IF(AND($F$4=""),"",ROUND(G13*Master!C$4%,0))) -> 8568 | I13: =IF(AND(G13=""),"",IF(AND($F$4=""),"",ROUND(G13*Master!H$4%,0))) -> 5712 | J13: 85680 | K13: 0 | L13: 3570 | M13: 0 | N13: 3570 | O13: 0 | P13: 3570 | Q13: 0 | R13: 3570 | S13: 0 | Y13: 2019-11-01
A14: 6 | B14: =IF(AND($F$4=""),"",IF(AND(Arrear!X$1<6),"",Y14)) -> 2019-12-01 | C14: =IF(AND($F$4=""),"",IF(AND(Arrear!X$1<6),"",Arrear!C13)) -> 71400 | D14: =IF(AND(C14=""),"",IF(AND($F$4=""),"",ROUND(C14*Master!C$5%,0))) -> 12138 | E14: =IF(AND(C14=""),"",IF(AND($F$4=""),"",ROUND(C14*Master!H$5%,0))) -> 5712 | F14: 89250 | G14: =IF(AND($F$4=""),"",IF(AND(Arrear!X$1<6),"",Arrear!C14)) -> 71400 | H14: =IF(AND(G14=""),"",IF(AND($F$4=""),"",ROUND(G14*Master!C$4%,0))) -> 8568 | I14: =IF(AND(G14=""),"",IF(AND($F$4=""),"",ROUND(G14*Master!H$4%,0))) -> 5712 | J14: 85680 | K14: 0 | L14: 3570 | M14: 0 | N14: 3570 | O14: 0 | P14: =IF(AND(C14=""),"",IF(AND(Y$1=AA$1),N14-Q14,"0")) -> 3570 | Q14: 0 | R14: 3570 | S14: 0 | Y14: 2019-12-01
A15: TOTAL | C15: =IF(AND($F$4=""),"",SUM(C9:C14)) -> 428400 | D15: =IF(AND($F$4=""),"",SUM(D9:D14)) -> 72828 | E15: 34272 | F15: 535500 | G15: 428400 | H15: 51408 | I15: 34272 | J15: 514080 | K15: 0 | L15: 21420 | M15: 0 | N15: 21420 | O15: 0 | P15: 21420 | Q15: 0 | R15: 21420 | S15: 0
A16: 7 | B16: =IF(AND($F$4=""),"",IF(AND(Arrear!X$1<7),"",Y16)) -> 2020-01-01 | C16: =IF(AND($F$4=""),"",IF(AND(Arrear!X$1<7),"",Arrear!C14)) -> 71400 | D16: =IF(AND(C16=""),"",IF(AND($F$4=""),"",ROUND(C16*Master!C$5%,0))) -> 12138 | E16: =IF(AND(C16=""),"",IF(AND($F$4=""),"",ROUND(C16*Master!H$5%,0))) -> 5712 | F16: =IF(AND(C16=""),"",SUM(C16:E16)) -> 89250 | G16: =IF(AND($F$4=""),"",IF(AND(Arrear!X$1<7),"",Arrear!C16)) -> 71400 | H16: =IF(AND(G16=""),"",IF(AND($F$4=""),"",ROUND(G16*Master!C$4%,0))) -> 8568 | I16: =IF(AND(G16=""),"",IF(AND($F$4=""),"",ROUND(G16*Master!H$4%,0))) -> 5712 | J16: =IF(AND(C16=""),"",SUM(G16:I16)) -> 85680 | K16: =IF(AND(C16=""),"",IF(AND(G16=""),"",C16-G16)) -> 0 | L16: =IF(AND(D16=""),"",IF(AND(H16=""),"",D16-H16)) -> 3570 | M16: =IF(AND(E16=""),"",IF(AND(I16=""),"",E16-I16)) -> 0 | N16: =IF(AND(F16=""),"",IF(AND(J16=""),"",F16-J16)) -> 3570 | O16: =IF(AND(C16=""),"",IF(AND(Y$1=Z$1),ROUND((N16)*10%,0),"0")) -> 0 | P16: 3570 | Q16: =IF(AND($F$4=""),"",IF(AND(N16=""),"",ROUND(N16*AB$1%,0))) -> 0 | R16: =IF(AND(F$4=""),"",IF(AND(C16=""),"",IF(AND(O16=""),"",IF(AND(P16=""),"",O16+P16+Q16)))) -> 3570 | S16: =IF(AND(N16=""),"",IF(AND(R16=""),"",N16-R16)) -> 0 | Y16: 2020-01-01
A17: 8 | B17: =IF(AND($F$4=""),"",IF(AND(Arrear!X$1<8),"",Y17)) -> 2020-02-01 | C17: =IF(AND($F$4=""),"",IF(AND(Arrear!X$1<8),"",Arrear!C16)) -> 71400 | D17: =IF(AND(C17=""),"",IF(AND($F$4=""),"",ROUND(C17*Master!C$5%,0))) -> 12138 | E17: =IF(AND(C17=""),"",IF(AND($F$4=""),"",ROUND(C17*Master!H$5%,0))) -> 5712 | F17: 89250 | G17: =IF(AND($F$4=""),"",IF(AND(Arrear!X$1<8),"",Arrear!C17)) -> 71400 | H17: =IF(AND(G17=""),"",IF(AND($F$4=""),"",ROUND(G17*Master!C$4%,0))) -> 8568 | I17: =IF(AND(G17=""),"",IF(AND($F$4=""),"",ROUND(G17*Master!H$4%,0))) -> 5712 | J17: 85680 | K17: 0 | L17: 3570 | M17: 0 | N17: 3570 | O17: 0 | P17: 3570 | Q17: 0 | R17: 3570 | S17: 0 | Y17: 2020-02-01
A18: 9 | B18: =IF(AND($F$4=""),"",IF(AND(Arrear!X$1<9),"",Y18)) ->  | C18: =IF(AND($F$4=""),"",IF(AND(Arrear!X$1<9),"",Arrear!C17)) ->  | D18: =IF(AND(C18=""),"",IF(AND($F$4=""),"",ROUND(C18*Master!C$5%,0))) ->  | E18: =IF(AND(C18=""),"",IF(AND($F$4=""),"",ROUND(C18*Master!H$5%,0))) ->  | G18: =IF(AND($F$4=""),"",IF(AND(Arrear!X$1<9),"",Arrear!C18)) ->  | H18: =IF(AND(G18=""),"",IF(AND($F$4=""),"",ROUND(G18*Master!C$4%,0))) ->  | I18: =IF(AND(G18=""),"",IF(AND($F$4=""),"",ROUND(G18*Master!H$4%,0))) ->  | Y18: 2020-03-01
A19: TOTAL | C19: =IF(AND($F$4=""),"",SUM(C16:C18)) -> 142800 | D19: =IF(AND($F$4=""),"",SUM(D16:D18)) -> 24276 | E19: 11424 | F19: 178500 | G19: 142800 | H19: 17136 | I19: 11424 | J19: 171360 | K19: 0 | L19: 7140 | M19: 0 | N19: 7140 | O19: 0 | P19: 7140 | Q19: 0 | R19: 7140 | S19: 0 | Y19: 2020-04-01
A20: TOTAL | C20: =IF(AND($F$4=""),"",SUM(C15+C19)) -> 571200 | D20: =IF(AND($F$4=""),"",SUM(D15+D19)) -> 97104 | E20: 45696 | F20: 714000 | G20: 571200 | H20: 68544 | I20: 45696 | J20: 685440 | K20: 0 | L20: 28560 | M20: 0 | N20: 28560 | O20: 0 | P20: 28560 | Q20: 0 | R20: 28560 | S20: 0
E21: Cash Amount in Words : | J21: =IF(AND(F4=""),"",IF(AND(S20=0),"ZERO ONLY","( Rs. "&LOOKUP(IF(INT(RIGHT(S20,7)/100000)>19,INT(RIGHT(S20,7)/1000000),IF(INT(RIGHT(S20,7)/100000)>=10,INT(RIGHT(S20,7)/100000),0)),{0,1,2,3,4,5,6,7,8,9,10,11,12,13,14,15,16,17,18,19},{""," TEN "," TWENTY "," THIRTY "," FOURTY "," FIFTY "," SIXTY "," SEVENTY "," EIGHTY "," NINETY "," TEN "," ELEVEN "," TWELVE "," THIRTEEN "," FOURTEEN "," FIFTEEN "," SIXTEEN"," SEVENTEEN"," EIGHTEEN "," NINETEEN "})&IF((IF(INT(RIGHT(S20,7)/100000)>19,INT(RIGHT(S20,7)/1000000),IF(INT(RIGHT(S20,7)/100000)>=10,INT(RIGHT(S20,7)/100000),0))+IF(INT(RIGHT(S20,7)/100000)>19,INT(RIGHT(S20,6)/100000),IF(INT(RIGHT(S20,7)/100000)>10,0,INT(RIGHT(S20,6)/100000))))>0,LOOKUP(IF(INT(RIGHT(S20,7)/100000)>19,INT(RIGHT(S20,6)/100000),IF(INT(RIGHT(S20,7)/100000)>10,0,INT(RIGHT(S20,6)/100000))),{0,1,2,3,4,5,6,7,8,9,10,11,12,13,14,15,16,17,18,19},{""," ONE "," TWO "," THREE "," FOUR "," FIVE "," SIX "," SEVEN "," EIGHT "," NINE "," TEN "," ELEVEN "," TWELVE "," THIRTEEN "," FOURTEEN "," FIFTEEN "," SIXTEEN"," SEVENTEEN"," EIGHTEEN "," NINETEEN "})&" Lac. "," ")&LOOKUP(IF(INT(RIGHT(S20,5)/1000)>19,INT(RIGHT(S20,5)/10000),IF(INT(RIGHT(S20,5)/1000)>=10,INT(RIGHT(S20,5)/1000),0)),{0,1,2,3,4,5,6,7,8,9,10,11,12,13,14,15,16,17,18,19},{""," TEN "," TWENTY "," THIRTY "," FOURTY "," FIFTY "," SIXTY "," SEVENTY "," EIGHTY "," NINETY "," TEN "," ELEVEN "," TWELVE "," THIRTEEN "," FOURTEEN "," FIFTEEN "," SIXTEEN"," SEVENTEEN"," EIGHTEEN "," NINETEEN "})&IF((IF(INT(RIGHT(S20,5)/1000)>19,INT(RIGHT(S20,4)/1000),IF(INT(RIGHT(S20,5)/1000)>10,0,INT(RIGHT(S20,4)/1000)))+IF(INT(RIGHT(S20,5)/1000)>19,INT(RIGHT(S20,5)/10000),IF(INT(RIGHT(S20,5)/1000)>=10,INT(RIGHT(S20,5)/1000),0)))>0,LOOKUP(IF(INT(RIGHT(S20,5)/1000)>19,INT(RIGHT(S20,4)/1000),IF(INT(RIGHT(S20,5)/1000)>10,0,INT(RIGHT(S20,4)/1000))),{0,1,2,3,4,5,6,7,8,9,10,11,12,13,14,15,16,17,18,19},{""," ONE "," TWO "," THREE "," FOUR "," FIVE "," SIX "," SEVEN "," EIGHT "," NINE "," TEN "," ELEVEN "," TWELVE "," THIRTEEN "," FOURTEEN "," FIFTEEN "," SIXTEEN"," SEVENTEEN"," EIGHTEEN "," NINETEEN "})&" THOUSAND "," ")&IF((INT((RIGHT(S20,3))/100))>0,LOOKUP(INT((RIGHT(S20,3))/100),{0,1,2,3,4,5,6,7,8,9,10,11,12,13,14,15,16,17,18,19},{""," ONE "," TWO "," THREE "," FOUR "," FIVE "," SIX "," SEVEN "," EIGHT "," NINE "," TEN "," ELEVEN "," TWELVE "," THIRTEEN "," FOURTEEN "," FIFTEEN "," SIXTEEN"," SEVENTEEN"," EIGHTEEN "," NINETEEN "})&" HUNDRED "," ")&LOOKUP(IF(INT(RIGHT(S20,2))>19,INT(RIGHT(S20,2)/10),IF(INT(RIGHT(S20,2))>=10,INT(RIGHT(S20,2)),0)),{0,1,2,3,4,5,6,7,8,9,10,11,12,13,14,15,16,17,18,19},{""," TEN "," TWENTY "," THIRTY "," FOURTY "," FIFTY "," SIXTY "," SEVENTY "," EIGHTY "," NINETY "," TEN "," ELEVEN "," TWELVE "," THIRTEEN "," FOURTEEN "," FIFTEEN "," SIXTEEN"," SEVENTEEN"," EIGHTEEN "," NINETEEN "})&LOOKUP(IF(INT(RIGHT(S20,2))<10,INT(RIGHT(S20,1)),IF(INT(RIGHT(S20,2))<20,0,INT(RIGHT(S20,1)))),{0,1,2,3,4,5,6,7,8,9,10,11,12,13,14,15,16,17,18,19},{""," ONE "," TWO "," THREE "," FOUR "," FIVE "," SIX "," SEVEN "," EIGHT "," NINE "," TEN "," ELEVEN "," TWELVE "," THIRTEEN "," FOURTEEN "," FIFTEEN "," SIXTEEN"," SEVENTEEN"," EIGHTEEN "," NINETEEN "})&" Only)")) -> ZERO ONLY
D22: =IF(AND(P20=""),"",IF(AND(P20=0),"","( Rs. "&LOOKUP(IF(INT(RIGHT(P20,7)/100000)>19,INT(RIGHT(P20,7)/1000000),IF(INT(RIGHT(P20,7)/100000)>=10,INT(RIGHT(P20,7)/100000),0)),{0,1,2,3,4,5,6,7,8,9,10,11,12,13,14,15,16,17,18,19},{""," TEN "," TWENTY "," THIRTY "," FOURTY "," FIFTY "," SIXTY "," SEVENTY "," EIGHTY "," NINETY "," TEN "," ELEVEN "," TWELVE "," THIRTEEN "," FOURTEEN "," FIFTEEN "," SIXTEEN"," SEVENTEEN"," EIGHTEEN "," NINETEEN "})&IF((IF(INT(RIGHT(P20,7)/100000)>19,INT(RIGHT(P20,7)/1000000),IF(INT(RIGHT(P20,7)/100000)>=10,INT(RIGHT(P20,7)/100000),0))+IF(INT(RIGHT(P20,7)/100000)>19,INT(RIGHT(P20,6)/100000),IF(INT(RIGHT(P20,7)/100000)>10,0,INT(RIGHT(P20,6)/100000))))>0,LOOKUP(IF(INT(RIGHT(P20,7)/100000)>19,INT(RIGHT(P20,6)/100000),IF(INT(RIGHT(P20,7)/100000)>10,0,INT(RIGHT(P20,6)/100000))),{0,1,2,3,4,5,6,7,8,9,10,11,12,13,14,15,16,17,18,19},{""," ONE "," TWO "," THREE "," FOUR "," FIVE "," SIX "," SEVEN "," EIGHT "," NINE "," TEN "," ELEVEN "," TWELVE "," THIRTEEN "," FOURTEEN "," FIFTEEN "," SIXTEEN"," SEVENTEEN"," EIGHTEEN "," NINETEEN "})&" Lac. "," ")&LOOKUP(IF(INT(RIGHT(P20,5)/1000)>19,INT(RIGHT(P20,5)/10000),IF(INT(RIGHT(P20,5)/1000)>=10,INT(RIGHT(P20,5)/1000),0)),{0,1,2,3,4,5,6,7,8,9,10,11,12,13,14,15,16,17,18,19},{""," TEN "," TWENTY "," THIRTY "," FOURTY "," FIFTY "," SIXTY "," SEVENTY "," EIGHTY "," NINETY "," TEN "," ELEVEN "," TWELVE "," THIRTEEN "," FOURTEEN "," FIFTEEN "," SIXTEEN"," SEVENTEEN"," EIGHTEEN "," NINETEEN "})&IF((IF(INT(RIGHT(P20,5)/1000)>19,INT(RIGHT(P20,4)/1000),IF(INT(RIGHT(P20,5)/1000)>10,0,INT(RIGHT(P20,4)/1000)))+IF(INT(RIGHT(P20,5)/1000)>19,INT(RIGHT(P20,5)/10000),IF(INT(RIGHT(P20,5)/1000)>=10,INT(RIGHT(P20,5)/1000),0)))>0,LOOKUP(IF(INT(RIGHT(P20,5)/1000)>19,INT(RIGHT(P20,4)/1000),IF(INT(RIGHT(P20,5)/1000)>10,0,INT(RIGHT(P20,4)/1000))),{0,1,2,3,4,5,6,7,8,9,10,11,12,13,14,15,16,17,18,19},{""," ONE "," TWO "," THREE "," FOUR "," FIVE "," SIX "," SEVEN "," EIGHT "," NINE "," TEN "," ELEVEN "," TWELVE "," THIRTEEN "," FOURTEEN "," FIFTEEN "," SIXTEEN"," SEVENTEEN"," EIGHTEEN "," NINETEEN "})&" THOUSAND "," ")&IF((INT((RIGHT(P20,3))/100))>0,LOOKUP(INT((RIGHT(P20,3))/100),{0,1,2,3,4,5,6,7,8,9,10,11,12,13,14,15,16,17,18,19},{""," ONE "," TWO "," THREE "," FOUR "," FIVE "," SIX "," SEVEN "," EIGHT "," NINE "," TEN "," ELEVEN "," TWELVE "," THIRTEEN "," FOURTEEN "," FIFTEEN "," SIXTEEN"," SEVENTEEN"," EIGHTEEN "," NINETEEN "})&" HUNDRED "," ")&LOOKUP(IF(INT(RIGHT(P20,2))>19,INT(RIGHT(P20,2)/10),IF(INT(RIGHT(P20,2))>=10,INT(RIGHT(P20,2)),0)),{0,1,2,3,4,5,6,7,8,9,10,11,12,13,14,15,16,17,18,19},{""," TEN "," TWENTY "," THIRTY "," FOURTY "," FIFTY "," SIXTY "," SEVENTY "," EIGHTY "," NINETY "," TEN "," ELEVEN "," TWELVE "," THIRTEEN "," FOURTEEN "," FIFTEEN "," SIXTEEN"," SEVENTEEN"," EIGHTEEN "," NINETEEN "})&LOOKUP(IF(INT(RIGHT(P20,2))<10,INT(RIGHT(P20,1)),IF(INT(RIGHT(P20,2))<20,0,INT(RIGHT(P20,1)))),{0,1,2,3,4,5,6,7,8,9,10,11,12,13,14,15,16,17,18,19},{""," ONE "," TWO "," THREE "," FOUR "," FIVE "," SIX "," SEVEN "," EIGHT "," NINE "," TEN "," ELEVEN "," TWELVE "," THIRTEEN "," FOURTEEN "," FIFTEEN "," SIXTEEN"," SEVENTEEN"," EIGHTEEN "," NINETEEN "})&" Only Deposite In GPF)")) -> ( Rs. TWENTY EIGHT THOUSAND FIVE HUNDRED SIXTY Only Deposite In GPF)
B23: july19 to Dec.19 total | E23: jan20 to Feb20 total | H23: july19 to Dec.19 total
B24: total Diff | C24: GPF/NPS | D24: Paid | E24: total Diff | F24: GPF/NPS | G24: Paid | H24: total Diff | I24: GPF/NPS | J24: Paid
B25: =N15 -> 21420 | C25: =IF(AND(Y$1=AA$1),P15,O15) -> 21420 | D25: =S15 -> 0 | E25: =N19 -> 7140 | F25: =IF(AND(Y$1=AA$1),P19,O19) -> 7140 | G25: =S19 -> 0 | H25: =N20 -> 28560 | I25: =IF(AND(Y$1=AA$1),P20,O20) -> 28560 | J25: =S20 -> 0
B26: S.R. | I26: Date : | O26: SEAL AND SIGN OF DDO
B27: For Copying And Necessary Action
A28: 1 | B28: Treasury Officer / Deputy treasury Officer
A29: 2 | B29: Related Employee Sh./Smt./Mis. | G29: =IF(AND(F4=""),"",CONCATENATE(J3,","," ",Q3)) -> MISHRI LAL, PRINCIPAL
A30: 3 | B30: File Register
O31: SEAL AND SIGN OF DDO

Sheet Unlock
A1: DA (17%) Drawn Statement | X1: =IF(ISNA(VLOOKUP($F$4,Master!A$8:N$127,4,FALSE)),"",VLOOKUP($F$4,Master!A$8:AH$127,4,FALSE)) -> 8 | Y1: =IF(ISNA(VLOOKUP($F$4,Master!A$8:N$127,6,FALSE)),"",VLOOKUP($F$4,Master!A$8:AH$127,6,FALSE)) -> NPS | Z1: NPS | AA1: GPF | AB1: =IF(ISNA(VLOOKUP($F$4,Master!A$8:N$127,7,FALSE)),"",VLOOKUP($F$4,Master!A$8:AH$127,7,FALSE)) -> 0
A2: =IF(AND(Master!C3=""),"",CONCATENATE("Office Of ",Master!C3)) -> Office Of Government Senior Secondry School Inderwara , Pali | Y2: =IF(ISNA(VLOOKUP($F$4,Master!A$8:N$127,8,FALSE)),"",VLOOKUP($F$4,Master!A$8:AH$127,8,FALSE)) -> 0 | Z2: YES
E3: Name of Employee :- | J3: =IF(ISNA(VLOOKUP($F$4,Master!A$8:N$127,2,FALSE)),"",VLOOKUP($F$4,Master!A$8:AH$127,2,FALSE)) -> MAHENDRA PATEL | O3: POST:- | Q3: =IF(ISNA(VLOOKUP($F$4,Master!A$8:N$127,3,FALSE)),"",VLOOKUP($F$4,Master!A$8:AH$127,3,FALSE)) -> Sr. Teacher
E4: Sr. No. - | F4: 6
A5: Serial No. | B5: Month & Year | C5: Pay Due | G5: Pay Drawn | K5: Pay Difference | O5: Deducation | R5: Total of Dedu ction Col. 15 to 17 | S5: To be paid deducting Col. 14 form 18 | T5: Treasury Bill@ Voucher No.& Date
C6: Basic | D6: Dearness Allowance | E6: H.R.A. | F6: Total Col. 3 to 5 | G6: Basic | H6: Dearness Allowance | I6: H.R.A. | J6: Total Col. 7 to 9 | K6: Basic Pay | L6: Dearness Allowance | M6: H.R.A. | N6: Total Col. 11 to 13 | O6: NPS/GPF | Q6: Income Tax / TDS
O7: NPS | P7: GPF
A8: 1 | B8: 2 | C8: 3 | D8: 4 | E8: 5 | F8: 6 | G8: 7 | H8: 8 | I8: 9 | J8: 10 | K8: 11 | L8: 12 | M8: 13 | N8: 14 | O8: 15 | P8: 16 | Q8: 17 | R8: 18 | S8: 19 | T8: 20
A9: 1 | B9: 2019-07-01 | C9: =IF(ISNA(VLOOKUP($F$4,Master!A$8:N$127,5,FALSE)),"",VLOOKUP($F$4,Master!A$8:AH$127,5,FALSE)) -> 41300 | D9: =IF(AND(C9=""),"",IF(AND($F$4=""),"",ROUND(C9*Master!C$5%,0))) -> 7021 | E9: =IF(AND(C9=""),"",IF(AND($F$4=""),"",ROUND(C9*Master!H$5%,0))) -> 3304 | F9: =IF(AND(C9=""),"",SUM(C9:E9)) -> 51625 | G9: =IF(ISNA(VLOOKUP($F$4,Master!A$8:N$127,5,FALSE)),"",VLOOKUP($F$4,Master!A$8:AH$127,5,FALSE)) -> 41300 | H9: =IF(AND(G9=""),"",IF(AND($F$4=""),"",ROUND(G9*Master!C$4%,0))) -> 4956 | I9: =IF(AND(G9=""),"",IF(AND($F$4=""),"",ROUND(G9*Master!H$4%,0))) -> 3304 | J9: =IF(AND(C9=""),"",SUM(G9:I9)) -> 49560 | K9: =IF(AND(C9=""),"",IF(AND(G9=""),"",C9-G9)) -> 0 | L9: 2065 | M9: 0 | N9: 2065 | O9: =IF(AND(C9=""),"",IF(AND(Y$1=Z$1),ROUND((N9)*10%,0),"0")) -> 207 | P9: =IF(AND(C9=""),"",IF(AND(Y$1=AA$1),N9-Q9,"0")) -> 0 | Q9: =IF(AND($F$4=""),"",IF(AND(N9=""),"",ROUND(N9*AB$1%,0))) -> 0 | R9: =IF(AND(F$4=""),"",IF(AND(C9=""),"",IF(AND(O9=""),"",IF(AND(P9=""),"",O9+P9+Q9)))) -> 207 | S9: =IF(AND(N9=""),"",IF(AND(R9=""),"",N9-R9)) -> 1858 | Y9: 2019-07-01
A10: 2 | B10: =IF(AND($F$4=""),"",IF(AND(Arrear!X$1<2),"",Y10)) -> 2019-08-01 | C10: =IF(AND($F$4=""),"",IF(AND(Arrear!X$1<2),"",Arrear!C9)) -> 71400 | D10: =IF(AND(C10=""),"",IF(AND($F$4=""),"",ROUND(C10*Master!C$5%,0))) -> 12138 | E10: =IF(AND(C10=""),"",IF(AND($F$4=""),"",ROUND(C10*Master!H$5%,0))) -> 5712 | F10: 89250 | G10: =IF(AND($F$4=""),"",IF(AND(Arrear!X$1<2),"",Arrear!C10)) -> 71400 | H10: =IF(AND(G10=""),"",IF(AND($F$4=""),"",ROUND(G10*Master!C$4%,0))) -> 8568 | I10: =IF(AND(G10=""),"",IF(AND($F$4=""),"",ROUND(G10*Master!H$4%,0))) -> 5712 | J10: 85680 | K10: 0 | L10: 3570 | M10: 0 | N10: 3570 | O10: =IF(AND(C10=""),"",IF(AND(Y$1=Z$1),ROUND((N10)*10%,0),"0")) -> 357 | P10: =IF(AND(C10=""),"",IF(AND(Y$1=AA$1),N10-Q10,"0")) -> 0 | Q10: =IF(AND($F$4=""),"",IF(AND(N10=""),"",ROUND(N10*AB$1%,0))) -> 0 | R10: =IF(AND(F$4=""),"",IF(AND(C10=""),"",IF(AND(O10=""),"",IF(AND(P10=""),"",O10+P10+Q10)))) -> 357 | S10: =IF(AND(N10=""),"",IF(AND(R10=""),"",N10-R10)) -> 3213 | Y10: 2019-08-01
A11: 3 | B11: =IF(AND($F$4=""),"",IF(AND(Arrear!X$1<3),"",Y11)) -> 2019-09-01 | C11: =IF(AND($F$4=""),"",IF(AND(Arrear!X$1<3),"",Arrear!C10)) -> 71400 | D11: =IF(AND(C11=""),"",IF(AND($F$4=""),"",ROUND(C11*Master!C$5%,0))) -> 12138 | E11: =IF(AND(C11=""),"",IF(AND($F$4=""),"",ROUND(C11*Master!H$5%,0))) -> 5712 | F11: 89250 | G11: =IF(AND($F$4=""),"",IF(AND(Arrear!X$1<3),"",Arrear!C11)) -> 71400 | H11: =IF(AND(G11=""),"",IF(AND($F$4=""),"",ROUND(G11*Master!C$4%,0))) -> 8568 | I11: =IF(AND(G11=""),"",IF(AND($F$4=""),"",ROUND(G11*Master!H$4%,0))) -> 5712 | J11: 85680 | K11: 0 | L11: 3570 | M11: 0 | N11: 3570 | O11: 357 | P11: 0 | Q11: 0 | R11: 357 | S11: 3213 | Y11: 2019-09-01
A12: 4 | B12: =IF(AND($F$4=""),"",IF(AND(Arrear!X$1<4),"",Y12)) -> 2019-10-01 | C12: =IF(AND($F$4=""),"",IF(AND(Arrear!X$1<4),"",Arrear!C11)) -> 71400 | D12: =IF(AND(C12=""),"",IF(AND($F$4=""),"",ROUND(C12*Master!C$5%,0))) -> 12138 | E12: =IF(AND(C12=""),"",IF(AND($F$4=""),"",ROUND(C12*Master!H$5%,0))) -> 5712 | F12: 89250 | G12: =IF(AND($F$4=""),"",IF(AND(Arrear!X$1<4),"",Arrear!C12)) -> 71400 | H12: =IF(AND(G12=""),"",IF(AND($F$4=""),"",ROUND(G12*Master!C$4%,0))) -> 8568 | I12: =IF(AND(G12=""),"",IF(AND($F$4=""),"",ROUND(G12*Master!H$4%,0))) -> 5712 | J12: 85680 | K12: 0 | L12: 3570 | M12: 0 | N12: 3570 | O12: 357 | P12: 0 | Q12: 0 | R12: 357 | S12: 3213 | Y12: 2019-10-01
A13: 5 | B13: =IF(AND($F$4=""),"",IF(AND(Arrear!X$1<5),"",Y13)) -> 2019-11-01 | C13: =IF(AND($F$4=""),"",IF(AND(Arrear!X$1<5),"",Arrear!C12)) -> 71400 | D13: =IF(AND(C13=""),"",IF(AND($F$4=""),"",ROUND(C13*Master!C$5%,0))) -> 12138 | E13: =IF(AND(C13=""),"",IF(AND($F$4=""),"",ROUND(C13*Master!H$5%,0))) -> 5712 | F13: 89250 | G13: =IF(AND($F$4=""),"",IF(AND(Arrear!X$1<5),"",Arrear!C13)) -> 71400 | H13: =IF(AND(G13=""),"",IF(AND($F$4=""),"",ROUND(G13*Master!C$4%,0))) -> 8568 | I13: =IF(AND(G13=""),"",IF(AND($F$4=""),"",ROUND(G13*Master!H$4%,0))) -> 5712 | J13: 85680 | K13: 0 | L13: 3570 | M13: 0 | N13: 3570 | O13: 357 | P13: 0 | Q13: 0 | R13: 357 | S13: 3213 | Y13: 2019-11-01
A14: 6 | B14: =IF(AND($F$4=""),"",IF(AND(Arrear!X$1<6),"",Y14)) -> 2019-12-01 | C14: =IF(AND($F$4=""),"",IF(AND(Arrear!X$1<6),"",Arrear!C13)) -> 71400 | D14: =IF(AND(C14=""),"",IF(AND($F$4=""),"",ROUND(C14*Master!C$5%,0))) -> 12138 | E14: =IF(AND(C14=""),"",IF(AND($F$4=""),"",ROUND(C14*Master!H$5%,0))) -> 5712 | F14: 89250 | G14: =IF(AND($F$4=""),"",IF(AND(Arrear!X$1<6),"",Arrear!C14)) -> 71400 | H14: =IF(AND(G14=""),"",IF(AND($F$4=""),"",ROUND(G14*Master!C$4%,0))) -> 8568 | I14: =IF(AND(G14=""),"",IF(AND($F$4=""),"",ROUND(G14*Master!H$4%,0))) -> 5712 | J14: 85680 | K14: 0 | L14: 3570 | M14: 0 | N14: 3570 | O14: 357 | P14: =IF(AND(C14=""),"",IF(AND(Y$1=AA$1),N14-Q14,"0")) -> 0 | Q14: 0 | R14: 357 | S14: 3213 | Y14: 2019-12-01
A15: TOTAL | C15: =IF(AND($F$4=""),"",SUM(C9:C14)) -> 398300 | D15: =IF(AND($F$4=""),"",SUM(D9:D14)) -> 67711 | E15: 31864 | F15: 497875 | G15: 398300 | H15: 47796 | I15: 31864 | J15: 477960 | K15: 0 | L15: 19915 | M15: 0 | N15: 19915 | O15: 1992 | P15: 0 | Q15: 0 | R15: 1992 | S15: 17923
A16: 7 | B16: =IF(AND($F$4=""),"",IF(AND(Arrear!X$1<7),"",Y16)) -> 2020-01-01 | C16: =IF(AND($F$4=""),"",IF(AND(Arrear!X$1<7),"",Arrear!C14)) -> 71400 | D16: =IF(AND(C16=""),"",IF(AND($F$4=""),"",ROUND(C16*Master!C$5%,0))) -> 12138 | E16: =IF(AND(C16=""),"",IF(AND($F$4=""),"",ROUND(C16*Master!H$5%,0))) -> 5712 | F16: =IF(AND(C16=""),"",SUM(C16:E16)) -> 89250 | G16: =IF(AND($F$4=""),"",IF(AND(Arrear!X$1<7),"",Arrear!C16)) -> 71400 | H16: =IF(AND(G16=""),"",IF(AND($F$4=""),"",ROUND(G16*Master!C$4%,0))) -> 8568 | I16: =IF(AND(G16=""),"",IF(AND($F$4=""),"",ROUND(G16*Master!H$4%,0))) -> 5712 | J16: =IF(AND(C16=""),"",SUM(G16:I16)) -> 85680 | K16: =IF(AND(C16=""),"",IF(AND(G16=""),"",C16-G16)) -> 0 | L16: 3570 | M16: 0 | N16: 3570 | O16: =IF(AND(C16=""),"",IF(AND(Y$1=Z$1),ROUND((N16)*10%,0),"0")) -> 357 | P16: 0 | Q16: =IF(AND($F$4=""),"",IF(AND(N16=""),"",ROUND(N16*AB$1%,0))) -> 0 | R16: =IF(AND(F$4=""),"",IF(AND(C16=""),"",IF(AND(O16=""),"",IF(AND(P16=""),"",O16+P16+Q16)))) -> 357 | S16: =IF(AND(N16=""),"",IF(AND(R16=""),"",N16-R16)) -> 3213 | Y16: 2020-01-01
A17: 8 | B17: =IF(AND($F$4=""),"",IF(AND(Arrear!X$1<8),"",Y17)) -> 2020-02-01 | C17: =IF(AND($F$4=""),"",IF(AND(Arrear!X$1<8),"",Arrear!C16)) -> 71400 | D17: =IF(AND(C17=""),"",IF(AND($F$4=""),"",ROUND(C17*Master!C$5%,0))) -> 12138 | E17: =IF(AND(C17=""),"",IF(AND($F$4=""),"",ROUND(C17*Master!H$5%,0))) -> 5712 | F17: 89250 | G17: =IF(AND($F$4=""),"",IF(AND(Arrear!X$1<8),"",Arrear!C17)) -> 71400 | H17: =IF(AND(G17=""),"",IF(AND($F$4=""),"",ROUND(G17*Master!C$4%,0))) -> 8568 | I17: =IF(AND(G17=""),"",IF(AND($F$4=""),"",ROUND(G17*Master!H$4%,0))) -> 5712 | J17: 85680 | K17: 0 | L17: 3570 | M17: 0 | N17: 3570 | O17: 357 | P17: 0 | Q17: 0 | R17: 357 | S17: 3213 | Y17: 2020-02-01
A18: 9 | B18: =IF(AND($F$4=""),"",IF(AND(Arrear!X$1<9),"",Y18)) ->  | C18: =IF(AND($F$4=""),"",IF(AND(Arrear!X$1<9),"",Arrear!C17)) ->  | D18: =IF(AND(C18=""),"",IF(AND($F$4=""),"",ROUND(C18*Master!C$5%,0))) ->  | E18: =IF(AND(C18=""),"",IF(AND($F$4=""),"",ROUND(C18*Master!H$5%,0))) ->  | G18: =IF(AND($F$4=""),"",IF(AND(Arrear!X$1<9),"",Arrear!C18)) ->  | H18: =IF(AND(G18=""),"",IF(AND($F$4=""),"",ROUND(G18*Master!C$4%,0))) ->  | I18: =IF(AND(G18=""),"",IF(AND($F$4=""),"",ROUND(G18*Master!H$4%,0))) ->  | Y18: 2020-03-01
A19: TOTAL | C19: =IF(AND($F$4=""),"",SUM(C16:C18)) -> 142800 | D19: =IF(AND($F$4=""),"",SUM(D16:D18)) -> 24276 | E19: 11424 | F19: 178500 | G19: 142800 | H19: 17136 | I19: 11424 | J19: 171360 | K19: 0 | L19: 7140 | M19: 0 | N19: 7140 | O19: 714 | P19: 0 | Q19: 0 | R19: 714 | S19: 6426 | Y19: 2020-04-01
A20: TOTAL | C20: =IF(AND($F$4=""),"",SUM(C15+C19)) -> 541100 | D20: =IF(AND($F$4=""),"",SUM(D15+D19)) -> 91987 | E20: 43288 | F20: 676375 | G20: 541100 | H20: 64932 | I20: 43288 | J20: 649320 | K20: 0 | L20: 27055 | M20: 0 | N20: 27055 | O20: 2706 | P20: 0 | Q20: 0 | R20: 2706 | S20: 24349
E21: Cash Amount in Words :
B23: july19 to Dec.19 total | E23: jan20 to Feb20 total | H23: july19 to Dec.19 total
B24: total Diff | C24: GPF/NPS | D24: Paid | E24: total Diff | F24: GPF/NPS | G24: Paid | H24: total Diff | I24: GPF/NPS | J24: Paid
B25: =N15 -> 19915 | C25: =IF(AND(Y$1=AA$1),P15,O15) -> 1992 | D25: =S15 -> 17923 | E25: =N19 -> 7140 | F25: =IF(AND(Y$1=AA$1),P19,O19) -> 714 | G25: =S19 -> 6426 | H25: =N20 -> 27055 | I25: =IF(AND(Y$1=AA$1),P20,O20) -> 2706 | J25: =S20 -> 24349
B26: S.R. | I26: Date : | O26: SEAL AND SIGN OF DDO
B27: For Copying And Necessary Action
A28: 1 | B28: Treasury Officer / Deputy treasury Officer
A29: 2 | B29: Related Employee Sh./Smt./Mis. | G29: =IF(AND(F4=""),"",CONCATENATE(J3,","," ",Q3)) -> MAHENDRA PATEL, Sr. Teacher
A30: 3 | B30: File Register
O31: SEAL AND SIGN OF DDO

Sheet Surrender Arrear
A1: DA (17%) Drawn Statement | X1: =IF(ISNA(VLOOKUP($F$4,Master!A$8:N$127,4,FALSE)),"",VLOOKUP($F$4,Master!A$8:AH$127,4,FALSE)) -> 8 | Y1: =IF(ISNA(VLOOKUP($F$4,Master!A$8:N$127,6,FALSE)),"",VLOOKUP($F$4,Master!A$8:AH$127,6,FALSE)) -> NPS | Z1: NPS | AA1: GPF | AB1: =IF(ISNA(VLOOKUP($F$4,Master!A$8:N$127,7,FALSE)),"",VLOOKUP($F$4,Master!A$8:AH$127,7,FALSE)) -> 0
A2: =IF(AND(Master!C3=""),"",CONCATENATE("Office Of ",Master!C3)) -> Office Of Government Senior Secondry School Inderwara , Pali | Y2: =IF(ISNA(VLOOKUP($F$4,Master!A$8:N$127,8,FALSE)),"",VLOOKUP($F$4,Master!A$8:AH$127,8,FALSE)) -> 0 | Z2: YES
E3: Name of Employee :- | J3: =IF(ISNA(VLOOKUP($F$4,Master!A$8:N$127,2,FALSE)),"",VLOOKUP($F$4,Master!A$8:AH$127,2,FALSE)) -> MAHENDRA PATEL | O3: POST:- | Q3: =IF(ISNA(VLOOKUP($F$4,Master!A$8:N$127,3,FALSE)),"",VLOOKUP($F$4,Master!A$8:AH$127,3,FALSE)) -> Sr. Teacher
E4: Sr. No. - | F4: 6
G5: Surrender Arrear Statement
A6: Serial No. | B6: Month & Year | C6: Pay Due | G6: Pay Drawn | K6: Pay Difference | O6: Deducation | R6: Total of Dedu ction Col. 15 to 17 | S6: To be paid deducting Col. 14 form 18 | T6: Treasury Bill@ Voucher No.& Date
C7: Basic | D7: Dearness Allowance | E7: H.R.A. | F7: Total Col. 3 to 5 | G7: Basic | H7: Dearness Allowance | I7: H.R.A. | J7: Total Col. 7 to 9 | K7: Basic Pay | L7: Dearness Allowance | M7: H.R.A. | N7: Total Col. 11 to 13 | O7: NPS/GPF | Q7: Income Tax / TDS
O8: NPS | P8: GPF
A9: 1 | B9: 2 | C9: 3 | D9: 4 | E9: 5 | F9: 6 | G9: 7 | H9: 8 | I9: 9 | J9: 10 | K9: 11 | L9: 12 | M9: 13 | N9: 14 | O9: 15 | P9: 16 | Q9: 17 | R9: 18 | S9: 19 | T9: 20
A10: 1 | B10: Surrender | C10: =IF(ISNA(VLOOKUP($F$4,Master!A$8:N$127,5,FALSE)),"",VLOOKUP($F$4,Master!A$8:AH$127,5,FALSE))/2 -> 20650 | D10: =IF(AND(C10=""),"",IF(AND($F$4=""),"",ROUND(C10*Master!C$5%,0))) -> 3511 | F10: =IF(AND(C10=""),"",SUM(C10:E10)) -> 24161 | G10: =IF(ISNA(VLOOKUP($F$4,Master!A$8:N$127,5,FALSE)),"",VLOOKUP($F$4,Master!A$8:AH$127,5,FALSE))/2 -> 20650 | H10: =IF(AND(G10=""),"",IF(AND($F$4=""),"",ROUND(G10*Master!C$4%,0))) -> 2478 | J10: =IF(AND(C10=""),"",SUM(G10:I10)) -> 23128 | K10: =IF(AND(C10=""),"",IF(AND(G10=""),"",C10-G10)) -> 0 | L10: 1033 | N10: 1033 | O10: =IF(AND(C10=""),"",IF(AND(Y$1=Z$1),ROUND((N10)*10%,0),"0")) -> 103 | P10: =IF(AND(C10=""),"",IF(AND(Y$1=AA$1),N10-Q10,"0")) -> 0 | Q10: =IF(AND($F$4=""),"",IF(AND(N10=""),"",ROUND(N10*AB$1%,0))) -> 0 | R10: =IF(AND(F$4=""),"",IF(AND(C10=""),"",IF(AND(O10=""),"",IF(AND(P10=""),"",O10+P10+Q10)))) -> 103 | S10: =IF(AND(N10=""),"",IF(AND(R10=""),"",N10-R10)) -> 930 | Y10: 2019-07-01
A11: TOTAL | C11: =IF(AND($F$4=""),"",SUM(C10)) -> 20650 | D11: =IF(AND($F$4=""),"",SUM(D10)) -> 3511 | E11: 0 | F11: 24161 | G11: 20650 | H11: 2478 | I11: 0 | J11: 23128 | K11: 0 | L11: 1033 | M11: 0 | N11: 1033 | O11: 103 | P11: 0 | Q11: 0 | R11: 103 | S11: 930 | Y11: 2020-04-01
E12: Cash Amount in Words :
B14: S.R. | I14: Date : | O14: SEAL AND SIGN OF DDO
B15: For Copying And Necessary Action
A16: 1 | B16: Treasury Officer / Deputy treasury Officer
A17: 2 | B17: Related Employee Sh./Smt./Mis. | G17: =IF(AND(F4=""),"",CONCATENATE(J3,","," ",Q3)) -> MAHENDRA PATEL, Sr. Teacher
A18: 3 | B18: File Register
O19: SEAL AND SIGN OF DDO
